bitfinex/quotes_SOLUSD_20241022
["timestamp","ask_amount","ask_price","bid_price","bid_amount"]
[1729607257052,6.0726,167.43,167.35,6.1257]
[1729607257379,0.1,167.43,167.36,23.776884]
[1729607257879,0.1,167.42,167.36,23.776884]
[1729607259262,5.9741,167.39,167.28,70.0]
[1729607259473,0.1,167.38,167.28,70.1]
[1729607259685,0.1,167.39,167.3,70.0]
[1729607259859,0.1,167.42,167.32,70.0]
[1729607260174,0.1,167.42,167.32,70.1]
[1729607260865,0.1,167.42,167.34,23.776884]
[1729607261278,25.9726,167.43,167.34,23.776884]
[1729607261279,0.1,167.43,167.34,23.776884]
[1729607261584,0.1,167.41,167.32,0.1]
[1729607262062,0.1,167.41,167.33,20.0]
[1729607262678,0.1,167.45,167.33,20.0]
[1729607262874,0.1,167.45,167.36,70.0]
[1729607263067,0.1,167.45,167.37,43.776884]
[1729607263473,0.1,167.46,167.37,49.935284]
[1729607263665,0.1,167.45,167.37,49.935284]
[1729607264788,0.1,167.48,167.39,43.776884]
[1729607264971,0.1,167.48,167.39,43.876884]
[1729607265572,0.1,167.48,167.39,43.776884]
[1729607265758,0.1,167.48,167.39,43.876884]
[1729607266789,0.1,167.49,167.42,20.0]
[1729607267086,0.1,167.49,167.43,23.776884]
[1729607267393,0.1,167.5,167.43,23.776884]
[1729607268462,0.1,167.51,167.43,23.776884]
[1729607269372,14.05247517,167.53,167.44,20.0]
[1729607269568,0.1,167.55,167.47,23.776884]
[1729607269767,0.1,167.56,167.49,23.776884]
[1729607269972,6.5285,167.62,167.47,6.2551]
[1729607269973,5.9696,167.52,167.47,6.1551]
[1729607270287,0.1,167.53,167.47,6.1551]
[1729607271081,0.1,167.56,167.48,23.776884]
[1729607271389,0.1,167.58,167.48,93.776884]
[1729607271574,0.1,167.59,167.48,93.876884]
[1729607271769,0.1,167.57,167.5,23.776884]
[1729607272575,0.1,167.58,167.5,23.776884]
[1729607272775,0.1,167.6,167.51,20.0]
[1729607272980,0.1,167.6,167.52,23.776884]
[1729607273286,0.1,167.63,167.56,23.776884]
[1729607273496,0.1,167.64,167.56,23.776884]
[1729607273668,0.1,167.63,167.56,23.776884]
[1729607274173,0.1,167.61,167.54,20.0]
[1729607274375,6.0658,167.62,167.55,23.776884]
[1729607274571,6.0775,167.66,167.5,27.30366556]
[1729607274572,0.1,167.61,167.5,27.30366556]
[1729607274777,0.1,167.58,167.5,43.876884]
[1729607275092,6.0671,167.59,167.5,43.876884]
[1729607275465,0.1,167.63,167.52,43.776884]
[1729607275664,6.1775,167.66,167.57,70.0]
[1729607275861,0.1,167.66,167.58,23.776884]
[1729607276773,6.0644,167.66,167.58,23.776884]
[1729607276988,0.1,167.66,167.58,23.776884]
[1729607277186,0.1,167.66,167.6,23.776884]
[1729607278184,5.9641,167.67,167.6,23.776884]
[1729607278185,0.1,167.67,167.6,23.776884]
[1729607278394,6.064,167.68,167.6,23.776884]
[1729607278571,0.1,167.67,167.6,23.776884]
[1729607279372,0.1,167.7,167.62,23.776884]
[1729607279591,5.9622,167.73,167.65,20.0]
[1729607279784,0.1,167.69,167.59,97.40366556]
[1729607279988,0.1,167.68,167.6,43.776884]
[1729607280490,6.0844,167.75,167.6,43.776884]
[1729607280491,0.1,167.71,167.61,70.1]
[1729607280683,0.1,167.74,167.63,43.876884]
[1729607280986,0.1,167.75,167.66,6.0395]
[1729607281165,0.1,167.74,167.67,23.776884]
[1729607281365,0.1,167.72,167.66,6.0395]
[1729607282291,0.1,167.67,167.63,20.0]
[1729607282473,0.1,167.67,167.6,16.6056]
[1729607282791,6.0641,167.67,167.61,20.0]
[1729607282994,0.1,167.68,167.61,20.0]
[1729607283294,0.1,167.7,167.61,20.0]
[1729607283476,0.1,167.75,167.66,43.776884]
[1729607283787,6.0841,167.79,167.66,43.876884]
[1729607283788,0.1,167.74,167.66,43.876884]
[1729607283999,0.1,167.75,167.66,43.876884]
[1729607284167,0.1,167.76,167.66,71.18054956]
[1729607284589,0.1,167.75,167.66,71.18054956]
[1729607285087,0.1,167.75,167.66,71.08054956]
[1729607285269,0.1,167.75,167.66,71.18054956]
[1729607285775,0.1,167.74,167.66,43.776884]
[1729607285969,0.1,167.74,167.66,43.876884]
[1729607286277,0.1,167.75,167.66,71.18054956]
[1729607286668,6.0614,167.75,167.66,71.18054956]
[1729607286868,6.0841,167.79,167.66,71.18054956]
[1729607286869,0.1,167.73,167.66,43.776884]
[1729607287489,0.1,167.73,167.66,43.876884]
[1729607287995,0.1,167.73,167.66,43.776884]
[1729607288199,0.1,167.73,167.66,43.876884]
[1729607288688,0.1,167.75,167.66,43.776884]
[1729607288890,0.1,167.74,167.66,43.876884]
[1729607290787,0.1,167.75,167.66,43.876884]
[1729607290995,0.1,167.74,167.66,43.876884]
[1729607291690,0.1,167.74,167.66,43.776884]
[1729607291900,0.1,167.7,167.63,27.30366556]
[1729607292073,0.1,167.66,167.56,27.30366556]
[1729607292272,0.1,167.63,167.55,15.2665]
[1729607292492,6.0662,167.61,167.53,6.6305]
[1729607292788,0.1,167.64,167.54,70.1]
[1729607293006,0.1,167.66,167.56,70.1]
[1729607293310,0.1,167.65,167.56,70.1]
[1729607293802,0.1,167.65,167.57,43.776884]
[1729607294973,6.3791,167.69,167.52,0.1]
[1729607294974,0.1,167.6,167.52,0.1]
[1729607295881,0.1,167.6,167.51,0.1]
[1729607296291,0.1,167.63,167.54,20.0]
[1729607296474,0.1,167.62,167.54,20.0]
[1729607297297,0.1,167.62,167.56,20.0]
[1729607297500,0.1,167.61,167.56,20.0]
[1729607297671,5.9666,167.6,167.56,20.0]
[1729607297999,0.1,167.61,167.56,20.0]
[1729607298196,0.1,167.61,167.55,23.776884]
[1729607298699,0.1,167.6,167.51,20.0]
[1729607298893,0.1,167.6,167.53,20.0]
[1729607299090,0.1,167.6,167.54,23.776884]
[1729607304305,0.1,167.55,167.46,16.0768]
[1729607304808,6.0683,167.55,167.46,16.0768]
[1729607305097,0.1,167.55,167.46,16.0768]
[1729607305296,6.0684,167.55,167.46,16.0768]
[1729607305495,0.1,167.55,167.46,16.0768]
[1729607306282,0.1,167.55,167.47,23.776884]
[1729607306682,0.1,167.55,167.48,20.0]
[1729607306987,0.1,167.58,167.51,23.776884]
[1729607307182,6.418,167.59,167.52,20.0]
[1729607307390,0.1,167.58,167.52,20.0]
[1729607307904,0.1,167.61,167.54,20.0]
[1729607308084,0.1,167.6,167.54,20.0]
[1729607308290,0.24933619,167.6,167.54,20.0]
[1729607308812,0.14933619,167.6,167.54,20.0]
[1729607309287,0.24933619,167.6,167.54,20.0]
[1729607309811,0.14933619,167.6,167.54,20.0]
[1729607310509,0.24933619,167.6,167.54,20.0]
[1729607310895,0.14933619,167.6,167.54,20.0]
[1729607311096,0.24933619,167.6,167.54,20.0]
[1729607312014,0.1,167.53,167.44,70.0]
[1729607312181,0.1,167.53,167.42,97.30366556]
[1729607312506,0.1,167.52,167.42,27.30366556]
[1729607312681,0.1,167.52,167.42,97.30366556]
[1729607313093,0.1,167.47,167.38,70.0]
[1729607313305,0.1,167.48,167.39,0.1]
[1729607313498,0.1,167.5,167.4,70.0]
[1729607313700,0.1,167.5,167.41,0.1]
[1729607314216,0.1,167.5,167.4,70.1]
[1729607314519,0.1,167.5,167.41,0.1]
[1729607315514,0.1,167.5,167.41,43.876884]
[1729607316386,0.1,167.51,167.41,43.876884]
[1729607317115,0.1,167.52,167.44,43.776884]
[1729607318017,22.172,167.56,167.44,43.776884]
[1729607318018,0.1,167.53,167.44,43.776884]
[1729607318697,0.1,167.52,167.44,43.776884]
[1729607320514,0.1,167.56,167.46,43.876884]
[1729607321187,0.14933619,167.56,167.5,43.876884]
[1729607322192,0.14933619,167.56,167.52,70.1]
[1729607322395,0.14933619,167.56,167.53,43.776884]
[1729607323337,0.14933619,167.56,167.54,70.1]
[1729607323495,0.14933619,167.56,167.55,43.776884]
[1729607323804,0.14933619,167.56,167.55,43.876884]
[1729607327325,0.14933619,167.56,167.55,43.776884]
[1729607327513,0.14933619,167.56,167.5,33.53956556]
[1729607327712,0.1,167.55,167.46,8.4730583]
[1729607327923,0.1,167.53,167.45,15.9722]
[1729607328505,0.1,167.55,167.46,0.1]
[1729607328727,0.1,167.48,167.39,16.0396]
[1729607328926,0.1,167.48,167.39,86.0396]
[1729607329137,0.1,167.48,167.39,16.0396]
[1729607329428,0.1,167.51,167.41,0.1]
[1729607329601,0.1,167.49,167.41,0.1]
[1729607331511,0.1,167.49,167.41,20.1]
[1729607331912,0.1,167.49,167.43,20.0]
[1729607332111,0.1,167.53,167.45,20.0]
[1729607332299,0.1,167.52,167.45,20.0]
[1729607332509,0.1,167.51,167.45,20.0]
[1729607334027,0.1,167.47,167.39,20.0]
[1729607334233,0.1,167.47,167.39,0.1]
[1729607334541,0.1,167.47,167.38,6.31008887]
[1729607334706,0.1,167.47,167.38,0.1]
[1729607335022,0.1,167.47,167.39,0.1]
[1729607335342,15.1208,167.56,167.39,0.1]
[1729607335343,0.1,167.48,167.41,20.0]
[1729607335518,0.1,167.48,167.42,23.776884]
[1729607335719,0.1,167.48,167.43,20.0]
[1729607335912,0.1,167.48,167.42,23.776884]
[1729607336141,0.1,167.48,167.43,20.0]
[1729607336319,0.1,167.47,167.43,20.0]
[1729607336517,0.1,167.48,167.43,20.0]
[1729607337030,0.1,167.47,167.43,20.0]
[1729607337221,0.1,167.48,167.43,20.0]
[1729607337422,0.1,167.47,167.43,20.0]
[1729607339323,0.1,167.48,167.43,20.0]
[1729607339629,0.1,167.47,167.43,20.0]
[1729607340041,0.1,167.48,167.43,20.0]
[1729607340833,0.1,167.44,167.36,8.63494802]
[1729607341054,0.1,167.44,167.37,20.0]
[1729607341215,0.1,167.44,167.36,6.4776]
[1729607341533,0.1,167.44,167.36,6.5776]
[1729607341740,0.1,167.45,167.36,6.5776]
[1729607341944,0.1,167.44,167.36,6.4776]
[1729607342143,0.1,167.44,167.36,6.5776]
[1729607342310,0.1,167.44,167.38,20.0]
[1729607342515,0.1,167.44,167.39,23.776884]
[1729607342716,0.1,167.44,167.4,20.0]
[1729607342921,0.1,167.42,167.33,72.11979084]
[1729607343124,0.1,167.39,167.35,1.49378018]
[1729607343326,0.1,167.38,167.31,6.1285]
[1729607343537,0.1,167.39,167.31,6.1285]
[1729607343842,0.1,167.41,167.33,70.0]
[1729607344039,0.1,167.42,167.33,70.1]
[1729607344218,0.1,167.44,167.34,23.876884]
[1729607344542,0.1,167.45,167.37,23.776884]
[1729607344937,0.1,167.44,167.37,23.776884]
[1729607345229,0.1,167.46,167.4,20.0]
[1729607345622,0.1,167.46,167.38,20.0]
[1729607345623,0.1,167.47,167.38,20.0]
[1729607345940,0.1,167.47,167.41,23.776884]
[1729607346121,0.1,167.48,167.44,20.0]
[1729607347020,0.1,167.46,167.37,70.1]
[1729607347220,0.1,167.46,167.39,43.776884]
[1729607348545,0.1,167.45,167.39,43.776884]
[1729607348927,0.1,167.46,167.39,43.776884]
[1729607349135,0.1,167.46,167.39,43.876884]
[1729607349446,0.1,167.47,167.39,113.876884]
[1729607349828,0.1,167.48,167.39,113.876884]
[1729607350034,0.1,167.48,167.4,0.1]
[1729607350623,0.1,167.47,167.4,0.1]
[1729607350942,12.1665,167.52,167.4,0.1]
[1729607350943,0.1,167.48,167.4,0.1]
[1729607351168,0.1,167.49,167.4,27.40366556]
[1729607351357,0.1,167.49,167.43,20.0]
[1729607351644,0.1,167.48,167.43,20.0]
[1729607353846,0.1,167.45,167.36,99.30111213]
[1729607354025,0.1,167.41,167.37,1.49358445]
[1729607354350,0.1,167.41,167.18,29.73340749]
[1729607354351,0.1,167.38,167.3,27.30366556]
[1729607354550,0.1,167.36,167.31,1.49405113]
[1729607354845,0.1,167.36,167.32,1.49405113]
[1729607355144,0.1,167.36,167.27,27.30366556]
[1729607355449,0.1,167.36,167.28,1.49431133]
[1729607356146,0.1,167.36,167.29,1.4943844]
[1729607356328,0.1,167.36,167.3,1.4943844]
[1729607356530,0.1,167.35,167.28,23.776884]
[1729607356725,0.1,167.35,167.29,1.4944116]
[1729607356924,0.1,167.35,167.27,27.30366556]
[1729607357227,0.1,167.35,167.28,1.59443847]
[1729607357445,0.1,167.35,167.29,1.49443847]
[1729607358353,0.1,167.35,167.31,20.0]
[1729607360330,0.1,167.32,167.24,70.0]
[1729607360531,0.1,167.32,167.25,1.49456236]
[1729607360834,0.1,167.32,167.26,1.49456236]
[1729607361044,0.1,167.32,167.25,0.1]
[1729607361239,0.1,167.32,167.26,1.49458146]
[1729607361436,0.1,167.36,167.27,70.0]
[1729607361652,0.1,167.36,167.28,23.776884]
[1729607361853,0.1,167.36,167.31,20.0]
[1729607362936,0.1,167.31,167.23,70.6262297]
[1729607363148,0.1,167.31,167.25,1.49457155]
[1729607363558,4.61271568,167.36,167.23,0.7262297]
[1729607363857,5.9759,167.34,167.24,1.4947672]
[1729607364044,5.9755,167.35,167.23,0.6262297]
[1729607364646,23.776884,167.38,167.25,20.0]
[1729607364848,5.9752,167.36,167.25,20.0]
[1729607365935,20.0,167.4,167.26,23.776884]
[1729607366234,5.975,167.37,167.27,20.0]
[1729607366435,6.2762,167.41,167.28,23.776884]
[1729607366436,5.9744,167.39,167.28,23.776884]
[1729607366636,23.876884,167.4,167.27,20.0]
[1729607367053,5.9755,167.35,167.27,20.0]
[1729607367346,5.9755,167.35,167.24,23.776884]
[1729607367660,20.0,167.39,167.26,23.776884]
[1729607367957,5.9748,167.37,167.24,93.776884]
[1729607368352,5.9748,167.37,167.26,23.776884]
[1729607368849,23.776884,167.4,167.29,20.0]
[1729607369061,5.9743,167.39,167.29,20.0]
[1729607369238,6.1762,167.41,167.29,20.0]
[1729607369440,6.1762,167.41,167.31,20.0]
[1729607369764,6.1762,167.41,167.33,20.0]
[1729607370340,6.1762,167.41,167.27,70.0]
[1729607370341,6.2762,167.41,167.27,20.0]
[1729607370561,5.9755,167.35,167.27,20.0]
[1729607370755,43.776884,167.4,167.27,20.0]
[1729607370962,23.776884,167.38,167.27,20.0]
[1729607371162,23.776884,167.38,167.23,28.07086183]
[1729607371163,5.9754,167.36,167.24,20.0]
[1729607372160,5.9754,167.36,167.25,23.776884]
[1729607372462,5.9754,167.36,167.26,20.0]
[1729607373137,5.9752,167.36,167.26,20.0]
[1729607373337,23.776884,167.39,167.26,20.0]
[1729607373756,5.975,167.37,167.26,20.0]
[1729607374066,20.0,167.4,167.28,20.0]
[1729607374443,5.974,167.39,167.28,20.0]
[1729607374850,6.1762,167.41,167.31,23.776884]
[1729607375056,6.1762,167.41,167.3,20.0]
[1729607375276,6.1762,167.41,167.32,20.0]
[1729607379867,6.1762,167.41,167.33,23.776884]
[1729607380163,5.9726,167.44,167.34,20.0]
[1729607381366,21.8949,167.46,167.36,20.0]
[1729607381553,27.8665,167.46,167.36,20.0]
[1729607382574,5.9719,167.45,167.36,20.0]
[1729607382959,21.8949,167.46,167.36,20.0]
[1729607383872,23.876884,167.45,167.3,20.0]
[1729607384168,23.876884,167.45,167.27,92.8205]
[1729607384169,5.974,167.39,167.27,22.7205]
[1729607384383,5.974,167.39,167.27,22.8205]
[1729607384870,5.9736,167.41,167.28,0.1]
[1729607385250,5.9736,167.41,167.28,20.1]
[1729607385554,5.9736,167.41,167.28,0.1]
[1729607386050,5.9742,167.39,167.27,22.7205]
[1729607386550,5.9742,167.39,167.27,22.8205]
[1729607386752,23.776884,167.43,167.29,27.44463213]
[1729607386957,23.776884,167.43,167.3,20.0]
[1729607387167,5.9734,167.41,167.3,20.0]
[1729607387352,5.9734,167.41,167.32,20.0]
[1729607388174,27.8665,167.46,167.34,20.0]
[1729607388359,21.8949,167.46,167.34,20.0]
[1729607388557,5.9723,167.44,167.34,20.0]
[1729607392075,5.9739,167.4,167.27,92.7205]
[1729607392283,5.9743,167.39,167.29,17.14843635]
[1729607392474,5.9726,167.44,167.32,17.14843635]
[1729607392671,21.8949,167.46,167.32,17.14843635]
[1729607392886,23.776884,167.45,167.32,17.14843635]
[1729607393189,23.776884,167.45,167.33,23.776884]
[1729607393480,5.9729,167.43,167.34,20.0]
[1729607393868,5.9723,167.44,167.34,20.0]
[1729607396265,21.8949,167.46,167.36,20.0]
[1729607396576,27.8665,167.46,167.36,20.0]
[1729607398182,5.972,167.45,167.36,20.0]
[1729607398385,27.8665,167.46,167.36,20.0]
[1729607399294,5.972,167.45,167.36,20.0]
[1729607399963,21.8949,167.46,167.36,20.0]
[1729607400165,5.9721,167.45,167.36,20.0]
[1729607400371,21.8949,167.46,167.36,20.0]
[1729607400573,12.39018935,167.5,167.41,20.0]
[1729607400792,22.3799,167.54,167.43,37.14843635]
[1729607401083,4.46309933,167.53,167.45,20.0]
[1729607401282,28.3487,167.54,167.45,20.0]
[1729607401581,4.46268438,167.53,167.38,23.776884]
[1729607401790,5.971,167.48,167.38,23.776884]
[1729607402688,5.9714,167.47,167.38,23.776884]
[1729607402876,43.876884,167.51,167.36,22.773]
[1729607403074,5.972,167.45,167.35,20.0]
[1729607403473,5.9716,167.46,167.34,17.14843635]
[1729607403686,14.9253,167.5,167.34,17.14843635]
[1729607403891,5.9701,167.5,167.37,17.14843635]
[1729607404085,5.9706,167.49,167.38,23.776884]
[1729607404600,5.9701,167.5,167.38,23.776884]
[1729607404887,5.9701,167.5,167.39,20.0]
[1729607405296,5.9709,167.48,167.38,20.0]
[1729607405677,5.9704,167.5,167.38,20.0]
[1729607405883,14.923,167.53,167.41,23.776884]
[1729607405884,20.0,167.53,167.41,23.776884]
[1729607406082,22.3799,167.54,167.46,20.0]
[1729607406785,6.1916,167.54,167.45,23.776884]
[1729607406992,6.1916,167.54,167.46,20.0]
[1729607407187,6.11733619,167.56,167.46,20.0]
[1729607407699,0.14933619,167.56,167.48,20.0]
[1729607407891,0.14933619,167.56,167.5,20.0]
[1729607408099,0.14933619,167.56,167.52,20.0]
[1729607408900,0.14933619,167.56,167.54,20.0]
[1729607409375,0.14933619,167.56,167.51,20.0]
[1729607409579,0.14933619,167.56,167.53,20.0]
[1729607409978,0.14933619,167.56,167.48,17.14843635]
[1729607410178,0.14933619,167.56,167.52,20.0]
[1729607410398,0.14933619,167.56,167.51,23.776884]
[1729607410602,0.14933619,167.56,167.52,20.0]
[1729607411400,0.14933619,167.56,167.47,43.776884]
[1729607411595,0.14933619,167.56,167.47,60.92532035]
[1729607412689,0.14933619,167.56,167.47,130.92532035]
[1729607413002,0.14933619,167.56,167.51,43.776884]
[1729607413378,0.14933619,167.56,167.51,113.776884]
[1729607414398,0.14933619,167.56,167.54,43.776884]
[1729607414601,0.14933619,167.56,167.55,136.718484]
[1729607414981,0.14933619,167.56,167.55,66.718484]
[1729607415705,21.3287,167.68,167.58,43.776884]
[1729607416016,14.905,167.73,167.57,70.0]
[1729607416017,6.3374,167.72,167.63,20.0]
[1729607416180,6.3374,167.72,167.64,23.776884]
[1729607416380,15.3318,167.77,167.69,43.776884]
[1729607416985,21.2923,167.77,167.69,20.0]
[1729607417397,15.3318,167.77,167.69,20.0]
[1729607417889,5.9608,167.76,167.69,20.0]
[1729607418090,21.2923,167.77,167.69,20.0]
[1729607418284,15.3318,167.77,167.67,20.0]
[1729607418586,15.3318,167.77,167.65,23.776884]
[1729607418788,15.0022,167.76,167.64,20.0]
[1729607419001,5.9617,167.74,167.64,20.0]
[1729607419408,5.9608,167.76,167.62,20.0]
[1729607419701,15.3318,167.77,167.66,47.30901037]
[1729607420012,5.9602,167.78,167.66,47.30901037]
[1729607420309,5.9602,167.78,167.68,20.0]
[1729607420490,24.2774,167.81,167.68,20.0]
[1729607420800,6.3374,167.81,167.68,20.0]
[1729607421002,5.9603,167.78,167.68,20.0]
[1729607421499,5.9594,167.8,167.7,20.0]
[1729607421702,12.2968,167.81,167.72,20.0]
[1729607422004,5.9595,167.8,167.72,20.0]
[1729607422204,12.2965,167.81,167.72,20.0]
[1729607422586,5.9594,167.8,167.72,20.0]
[1729607422784,6.3374,167.81,167.72,20.0]
[1729607423702,6.3374,167.81,167.69,27.30901037]
[1729607423881,5.9594,167.8,167.7,43.776884]
[1729607425109,5.9608,167.77,167.67,23.776884]
[1729607425304,6.3374,167.81,167.67,23.776884]
[1729607425305,5.9601,167.79,167.67,23.776884]
[1729607426223,5.9601,167.79,167.68,20.0]
[1729607426521,5.9601,167.79,167.7,20.0]
[1729607427382,23.776884,167.8,167.67,20.0]
[1729607427583,5.9612,167.76,167.66,20.0]
[1729607428093,12.2965,167.81,167.7,20.0]
[1729607428402,6.3374,167.81,167.7,20.0]
[1729607428600,5.9615,167.75,167.66,20.0]
[1729607428813,5.9618,167.74,167.66,20.0]
[1729607429302,5.9618,167.74,167.64,20.0]
[1729607429503,0.1,167.79,167.64,20.0]
[1729607429688,23.876884,167.78,167.62,20.0]
[1729607429884,23.876884,167.74,167.57,49.29741037]
[1729607430187,5.9639,167.68,167.57,49.29741037]
[1729607430388,22.5041,167.75,167.59,70.0]
[1729607430601,5.9622,167.73,167.6,27.30901037]
[1729607430989,22.5041,167.75,167.61,70.0]
[1729607431307,28.4656,167.75,167.64,23.776884]
[1729607432009,28.4656,167.75,167.65,20.0]
[1729607432694,5.9617,167.74,167.65,20.0]
[1729607432889,23.776884,167.74,167.6,47.30901037]
[1729607433194,5.963,167.71,167.6,27.30901037]
[1729607433505,5.9623,167.72,167.6,27.30901037]
[1729607433914,22.5041,167.75,167.61,70.0]
[1729607434215,22.5041,167.75,167.62,43.776884]
[1729607434510,22.5041,167.75,167.64,43.776884]
[1729607434712,6.3873,167.8,167.66,97.30901037]
[1729607434909,6.3873,167.8,167.67,49.791384]
[1729607435095,12.3468,167.8,167.67,49.791384]
[1729607435290,0.6262297,167.82,167.71,43.776884]
[1729607435693,6.5849297,167.82,167.71,43.776884]
[1729607436509,0.6262297,167.82,167.71,43.776884]
[1729607437699,0.6262297,167.82,167.76,23.776884]
[1729607437922,0.6262297,167.82,167.75,27.30901037]
[1729607437923,0.6262297,167.82,167.79,20.0]
[1729607438417,0.6262297,167.82,167.81,20.0]
[1729607438730,0.6262297,167.82,167.81,43.776884]
[1729607439097,0.6262297,167.82,167.81,113.776884]
[1729607439302,0.6262297,167.82,167.81,43.776884]
[1729607440412,22.8177,167.93,167.81,43.776884]
[1729607440413,6.1874,167.93,167.82,23.776884]
[1729607440602,21.46326916,167.98,167.77,6.1366]
[1729607440603,26.77457599,167.98,167.86,23.776884]
[1729607440808,26.77457599,167.98,167.85,90.0]
[1729607440809,26.77457599,167.98,167.89,20.0]
[1729607441018,26.77457599,167.98,167.91,20.0]
[1729607441522,20.42737599,167.98,167.93,20.0]
[1729607441892,20.42737599,167.98,167.88,23.776884]
[1729607442124,6.5789297,167.99,167.89,20.0]
[1729607442323,6.5789297,167.99,167.93,20.0]
[1729607442324,0.6262297,167.99,167.93,20.0]
[1729607442622,0.6262297,167.99,167.92,23.776884]
[1729607442623,6.5792297,167.99,167.87,27.30901037]
[1729607442823,5.953,167.98,167.88,20.0]
[1729607443197,0.6262297,167.99,167.88,20.0]
[1729607443528,5.9549,167.93,167.81,97.30901037]
[1729607443694,5.9544,167.95,167.81,97.30901037]
[1729607443896,5.9548,167.93,167.81,97.30901037]
[1729607444109,23.776884,167.98,167.83,70.0]
[1729607444415,5.9544,167.95,167.81,97.30901037]
[1729607444625,5.9544,167.95,167.82,20.0]
[1729607445518,5.9545,167.94,167.84,20.0]
[1729607446009,23.876884,167.96,167.81,27.30901037]
[1729607446208,23.776884,167.96,167.79,86.2283]
[1729607446405,5.9538,167.96,167.81,97.30901037]
[1729607446617,20.0,167.97,167.81,97.30901037]
[1729607446822,5.9548,167.93,167.81,27.30901037]
[1729607447017,20.2,167.97,167.79,86.2283]
[1729607447242,23.776884,167.96,167.8,43.776884]
[1729607447437,5.9545,167.95,167.8,43.776884]
[1729607447728,5.9537,167.96,167.82,43.776884]
[1729607447928,5.9553,167.92,167.82,43.776884]
[1729607448313,20.1,167.97,167.82,43.776884]
[1729607448514,5.9543,167.95,167.82,43.776884]
[1729607448815,0.6262297,167.99,167.87,43.776884]
[1729607451213,6.5792297,167.99,167.87,43.776884]
[1729607452330,0.6262297,167.99,167.87,43.776884]
[1729607452842,5.9532,167.98,167.87,43.776884]
[1729607453215,0.6262297,167.99,167.87,43.776884]
[1729607453415,5.953,167.98,167.87,43.776884]
[1729607453721,14.8836,167.97,167.82,6.484]
[1729607453923,5.9554,167.92,167.82,6.484]
[1729607455026,0.6262297,167.99,167.86,97.30901037]
[1729607455430,0.6262297,167.99,167.88,20.0]
[1729607455624,0.6262297,167.99,167.9,20.0]
[1729607456028,6.5789297,167.99,167.9,20.0]
[1729607456332,0.6262297,167.99,167.87,20.0]
[1729607456533,0.6262297,167.99,167.89,20.0]
[1729607457046,5.953,167.98,167.89,20.0]
[1729607457721,0.6262297,167.99,167.91,20.0]
[1729607457919,0.6262297,167.99,167.93,20.0]
[1729607463541,5.9538,167.96,167.86,27.30901037]
[1729607463727,5.953,167.98,167.84,86.3764]
[1729607463933,5.953,167.98,167.86,70.0]
[1729607463934,5.9533,167.98,167.86,70.0]
[1729607464232,0.6262297,167.99,167.88,70.0]
[1729607464830,0.6262297,167.99,167.89,23.776884]
[1729607465222,0.6262297,167.99,167.9,20.0]